Cogmind - Beta 10.2 *** ADVENTURER MODE // 2021.12.26 @ 13:38:41 Player: TLFP Result: Destroyed by Y-54 Guardian with Flak Gun Performance ------------- Evolutions (4) 2000 Regions Visited (9) 1800 Robots Destroyed (40) 200 Value Destroyed (1278) 1278 Prototype IDs (28) 560 Alien Tech Used (1) 200 Bonus (300) 300 TOTAL SCORE: 6338 Bonus ------- Aligned with FarCom 300 Cogmind --------- Core Integrity 0/850 Matter 223/300 Energy 84/100 System Corruption 0% Temperature Cool (18) Movement Core (50) Location -6/Lower Caves Parts ------- > --- POWER (1) -------- (None) > --- PROPULSION (4) --- (None) > --- UTILITY (9) ------ Enhanced Optical Array Advanced Signal Interpreter Hacking Suite System Shield > --- WEAPON (2) ------- Makeshift Sword > --- INVENTORY (4) ---- Compact Battery (300) Trap Reconfigurator Hypervelocity Mass Driver Peak State ------------ > --- POWER ------------ Reinforced Deuterium Engine > --- PROPULSION ------- Compact Wheel Compact Wheel Armored Huge Wheel > --- UTILITY ---------- Large Storage Unit Large Storage Unit Enhanced Optical Array Experimental Sensor Array Advanced Signal Interpreter Hacking Suite Hacking Suite System Shield > --- WEAPON ----------- Hypervelocity Mass Driver Hypervelocity Mass Driver > --- INVENTORY -------- Deuterium Engine Compact Wheel VTOL Module VTOL Module VTOL Module Small Storage Unit Light Armor Plating Improved Light Armor Plating System Shield System Shield System Backup Module Trap Reconfigurator Shock Rifle Gauss Rifle Precision Grenade Launcher Makeshift Sword [Rating: 57] Favorites ----------- Power Deuterium Engine Engine Deuterium Engine Propulsion Compact Wheel Treads Light Treads Leg Aluminum Leg Wheel Compact Wheel Flight Unit VTOL Module Utility Hacking Suite Device Experimental Sensor Array Storage Large Storage Unit Processor Advanced Signal Interpreter Hackware Hacking Suite Protection Improved Light Armor Plating Weapon Axe Energy Gun Medium Laser Ballistic Gun Gauss Rifle Ballistic Cannon Hypervelocity Mass Driver Launcher Mini Grenade Launcher Slashing Weapon Axe Build | -11 -10 -10 -10 -9 -8 -7 -6 -6 -6 ------- Run | Scr Mat Min Exi Min Mat Fac Fac Low Low Slots Evolved 8 | . . . . . 4 2 2 . . Power . | . . . . . . . . . . Propulsion 2 | . . . . . 1 1 . . . Utility 6 | . . . . . 3 1 2 . . Weapon . | . . . . . . . . . . Parts Attached 75 | . . 5 1 1 9 42 2 5 10 Power 3 | . . . . . 1 2 . . . Engine 3 | . . . . . 1 2 . . . Core . | . . . . . . . . . . Reactor . | . . . . . . . . . . Propulsion 16 | . . 2 . . 1 9 . . 4 Treads 1 | . . 1 . . . . . . . Leg . | . . . . . . . . . . Wheel 8 | . . 1 . . 1 5 . . 1 Hover . | . . . . . . . . . . Flight 7 | . . . . . . 4 . . 3 Utility 36 | . . 2 1 1 5 20 2 1 4 Device 11 | . . . . 1 . 9 . 1 . Storage 7 | . . . 1 . 2 3 . . 1 Processor 2 | . . . . . . 1 1 . . Hackware 5 | . . . . . 1 1 1 . 2 Protection 11 | . . 2 . . 2 6 . . 1 Artifact . | . . . . . . . . . . Weapon 20 | . . 1 . . 2 11 . 4 2 Energy Gun 3 | . . . . . 1 2 . . . Energy Cannon . | . . . . . . . . . . Ballistic Gun 2 | . . . . . . 2 . . . Ballistic Cannon 3 | . . . . . . 1 . 2 . Launcher 4 | . . 1 . . . 2 . . 1 Special Weapon . | . . . . . . . . . . Impact Weapon . | . . . . . . . . . . Slashing Weapon 8 | . . . . . 1 4 . 2 1 Piercing Weapon . | . . . . . . . . . . Special Melee Weapon . | . . . . . . . . . . Unidentified Prototypes 2 | . . . . 1 . . . 1 . Parts Lost 25 | . . . . . 4 6 . . 15 Power 3 | . . . . . 1 1 . . 1 Propulsion 12 | . . . . . 1 4 . . 7 Utility 5 | . . . . . . . . . 5 Weapon 5 | . . . . . 2 1 . . 2 Highest Loss Streak 15 | . . . . . 2 4 . . 15 Average Slot Usage (%) 89 | . 85 99 100 100 82 87 93 92 52 Engine 8 | . 14 14 14 14 9 6 6 6 2 Treads 4 | . . 13 14 14 9 2 . . . Leg 1 | . 28 . . . . . . . . Wheel 13 | . . 13 14 14 15 13 20 19 5 Flight 2 | . . . . . . 4 . . . Device 4 | . . . . 4 9 6 6 6 1 Storage 13 | . 14 14 14 14 18 13 13 12 6 Processor 5 | . . . . . . 6 13 12 12 Hackware 9 | . . . . . . 11 20 19 15 Protection 5 | . . 13 14 9 7 4 . . . Energy Gun 7 | . 28 20 14 14 4 3 . . . Ballistic Gun 1 | . . . . . . 2 . . . Ballistic Cannon 1 | . . . . . . . 6 11 5 Launcher 2 | . . 7 14 14 3 . . . . Slashing Weapon 3 | . . . . . 5 6 6 1 . Naked Turns . | . . . . . . . . . . Heaviest Build 72 | 10 10 13 25 25 31 62 62 72 72 Greatest Support 60 | 20 20 20 10 10 26 60 60 60 60 Greatest Overweight (x) 4 | . . 1 2 2 3 2 1 1 4 Average Overweight (x) . | . . . 1 2 1 . 1 1 . Largest Inventory Capacity 18 | . 6 6 10 10 16 16 16 16 18 Average Capacity 11 | . 6 6 6 10 10 12 16 16 10 Most Carried 16 | . 6 6 7 8 10 16 16 16 16 Average Carried 11 | . 6 6 6 7 9 12 14 15 10 Final Capacity 16 | 6 6 6 10 10 10 16 16 16 4 Final Carried 16 | 6 6 6 7 8 10 16 16 16 3 Class Distribution -------------------- 51% | Hacker-Assassin 25% | Mutant 9% | Hacker-Mutant 7% | Hacker-Skirmisher 3% | Scavenger-Mutant Dominant Class ---------------- Mutant | -10/Materials Mutant | -10/Mines Mutant | -10/Exiles Mutant | -9/Mines Assassin | -8/Materials Hacker-Assassin | -7/Factory Hacker-Assassin | -6/Factory Hacker-Skirmisher | -6/Lower Caves Hacker-Mutant | -6/Lower Caves Resources | -11 -10 -10 -10 -9 -8 -7 -6 -6 -6 ----------- Run | Scr Mat Min Exi Min Mat Fac Fac Low Low Matter Collected 1170 | 200 . 76 . . 184 404 37 223 46 Remotely . | . . . . . . . . . . Salvage Created 1151 | . . 98 . 8 482 419 37 56 51 Parts 75 | . . 5 . 3 22 36 2 3 4 Haulers Intercepted . | . . . . . . . . . . Recyclers Shooed 3 | . . 1 . . 2 . . . . Parts Field Recycled . | . . . . . . . . . . Retrieved Matter . | . . . . . . . . . . Parts Self-Destructed 17 | . . . . . . . . 3 14 Prevented 3 | . . . . . . . . 3 . Kills | -11 -10 -10 -10 -9 -8 -7 -6 -6 -6 ------- Run | Scr Mat Min Exi Min Mat Fac Fac Low Low Combat Hostiles Destroyed 33 | . . 4 . 3 9 14 1 1 1 Melee 7 | . . . . . 4 3 . . . Guns 3 | . . . . . 1 2 . . . Cannons 2 | . . . . . . . 1 1 . AOE 20 | . . 4 . 3 4 8 . . 1 Classes Destroyed 9 | . . 3 . . 4 2 . . . Worker 4 | . . . . . 1 3 . . . Recycler 3 | . . 1 . . 2 . . . . Operator 1 | . . . . . . 1 . . . Swarmer 14 | . . 3 . 3 . 8 . . . Grunt 5 | . . . . . 4 . . . 1 Sentry 5 | . . . . . 4 1 . . . Hunter 4 | . . . . . 1 2 . 1 . Programmer 4 | . . . . . . 3 1 . . Assembled 1 | . . 1 . . . . . . . Best Kill Streak 8 | . . 3 . 3 7 8 1 1 1 Combat Bots Only 4 | . . 3 . 3 4 4 1 1 1 Max Kills in Single Turn 4 | . . 3 . 2 3 4 1 1 1 Gunslinging . | . . . . . . . . . . Exploded 3 | . . 3 . 2 3 3 . . 1 Melee 1 | . . . . . 1 1 . . . Uniques/NPCs Destroyed . | . . . . . . . . . . Combat | -11 -10 -10 -10 -9 -8 -7 -6 -6 -6 -------- Run | Scr Mat Min Exi Min Mat Fac Fac Low Low Damage Taken 3599 | . . 55 . 27 552 790 23 45 2107 Core 1112 | . . 7 . 9 98 147 . . 851 Absorbed by Shields . | . . . . . . . . . . Core Remaining (%) 88 | 100 . . . 93 82 79 . . . Volleys Fired 68 | . . 6 . 3 20 27 1 6 5 Largest 2 | . . 2 . 1 2 2 1 2 2 Hottest 132 | . . 90 . 30 80 78 66 132 132 Shots Fired 82 | . . 9 . 3 27 28 1 7 7 Gun 47 | . . 6 . . 20 21 . . . Cannon 12 | . . . . . . . 1 7 4 Launcher 23 | . . 3 . 3 7 7 . . 3 Special . | . . . . . . . . . . Kinetic 26 | . . . . . . 14 1 7 4 Thermal 14 | . . 6 . . 8 . . . . Explosive 23 | . . 3 . 3 7 7 . . 3 Electromagnetic 19 | . . . . . 12 7 . . . Robot Hit Streak 40 | . . 5 . 7 34 40 1 4 8 Robot Miss Streak 2 | . . 1 . . . 2 . 2 . Penetration Max 1 | . . . . . . . . . 1 Secondary Targets . | . . . . . . . . . . Shots Hit Robots 89 | . . 7 . 2 38 33 1 4 4 Core Hits 73 | . . 8 . 3 28 25 1 1 7 Critical Hits 7 | . . . . . 1 1 1 2 2 Critical Kills 3 | . . . . . 1 . 1 1 . Critical Parts Destroyed 4 | . . . . . . 1 . 1 2 Melee Attacks 41 | . . . . . 11 25 4 1 . Impact . | . . . . . . . . . . Slashing 41 | . . . . . 11 25 4 1 . Piercing . | . . . . . . . . . . Sneak Attacks 2 | . . . . . . 2 . . . Combat Hostiles . | . . . . . . . . . . Follow-up Attacks . | . . . . . . . . . . Damage Inflicted 4062 | . . 267 . 292 1381 1612 23 24 463 Guns 622 | . . 59 . . 227 336 . . . Cannons 141 | . . . . . . . 23 24 94 Explosions 2405 | . . 208 . 292 795 741 . . 369 Melee 894 | . . . . . 359 535 . . . Ramming . | . . . . . . . . . . Kinetic 347 | . . . . . . 206 23 24 94 Thermal 158 | . . 59 . . 99 . . . . Explosive 2405 | . . 208 . 292 795 741 . . 369 Electromagnetic 258 | . . . . . 128 130 . . . Impact . | . . . . . . . . . . Slashing 894 | . . . . . 359 535 . . . Piercing . | . . . . . . . . . . Highest Corruption 2 | . . . . . . 2 . . . Average Corruption 1 | . . . . . . 1 . . . Corruption Purged . | . . . . . . . . . . Effects 6 | . . . . . . 6 . . . Message Errors 4 | . . . . . . 4 . . . Heat Flow Errors 1 | . . . . . . 1 . . . Data Loss (minor) 1 | . . . . . . 1 . . . Overload Shots . | . . . . . . . . . . Overflow Damage 184 | . . . . 40 16 128 . . . Projectiles . | . . . . . . . . . . Explosions 87 | . . . . 40 5 42 . . . Melee 97 | . . . . . 11 86 . . . Knockbacks 1 | . . . . . . . . . 1 Impact . | . . . . . . . . . . Kinetic 1 | . . . . . . . . . 1 Secondary . | . . . . . . . . . . Self-Inflicted Damage 18 | . . . . . . 18 . . . Shots 2 | . . . . . . 2 . . . Rammed . | . . . . . . . . . . Targets Rammed . | . . . . . . . . . . Kicked . | . . . . . . . . . . Crushed . | . . . . . . . . . . Highest Temperature 173 | . . 30 . . 156 173 12 51 60 Average Temperature 38 | . . 16 . . 47 55 9 25 32 Received Heat Transfer 888 | . . . . . 234 174 . . 480 Siege Activations . | . . . . . . . . . . Robots Corrupted 1 | . . . . . . 1 . . . Combat Hostiles 1 | . . . . . . 1 . . . Parts Fried 1 | . . . . . . 1 . . . Impact Corruptions . | . . . . . . . . . . Robots Melted . | . . . . . . . . . . Combat Hostiles . | . . . . . . . . . . Parts Melted . | . . . . . . . . . . Heat Transferred 457 | . . 161 . . 296 . . . . Parts Sabotaged . | . . . . . . . . . . Parts Stolen . | . . . . . . . . . . Parts Stripped . | . . . . . . . . . . Power Chain Reactions . | . . . . . . . . . . Missiles Intercepted . | . . . . . . . . . . Alert | -11 -10 -10 -10 -9 -8 -7 -6 -6 -6 ------- Run | Scr Mat Min Exi Min Mat Fac Fac Low Low Peak Influence 314 | . 12 89 . 70 314 256 45 . . Initial 122 | . . 3 . . 22 122 12 . . Average 49 | . 10 28 . 8 173 52 13 . . Maximum Alert Level 1 | . . . . . 1 1 . . . Low Security (%) 93 | . 100 100 . 100 48 94 100 . . Level 1 6 | . . . . . 51 5 . . . Level 2 . | . . . . . . . . . . Level 3 . | . . . . . . . . . . Level 4 . | . . . . . . . . . . Level 5 . | . . . . . . . . . . High Security . | . . . . . . . . . . Max Security . | . . . . . . . . . . Squads Dispatched 15 | . . 1 . . 3 9 1 . 1 Investigation 4 | . . 1 . . . 3 . . . Extermination 4 | . . . . . . 3 1 . . Reinforcement . | . . . . . . . . . . Assault 1 | . . . . . . . . . 1 Garrison 6 | . . . . . 3 3 . . . Intercept . | . . . . . . . . . . Construction Impeded . | . . . . . . . . . . Haulers Reinforced . | . . . . . . . . . . Stealth | -11 -10 -10 -10 -9 -8 -7 -6 -6 -6 --------- Run | Scr Mat Min Exi Min Mat Fac Fac Low Low Distress Signals 3 | . . . . . 2 1 . . . Communications Jammed . | . . . . . . . . . . Distress Signals . | . . . . . . . . . . Times Spotted 70 | . . 7 . 3 12 27 1 1 19 Peak Tracking Total 13 | . . 4 . 3 4 5 1 1 13 Tactical Retreats 5 | . . 1 . . 1 1 . . 2 Traps | -11 -10 -10 -10 -9 -8 -7 -6 -6 -6 ------- Run | Scr Mat Min Exi Min Mat Fac Fac Low Low Traps Triggered 1 | . . . . . 1 . . . . Indirectly . | . . . . . . . . . . Trap Hack Attempts . | . . . . . . . . . . Triggered . | . . . . . . . . . . Disarmed . | . . . . . . . . . . Reprogrammed . | . . . . . . . . . . Reused 8 | . . . . . . 8 . . . Traps Reconfigurated 24 | . . . . . . 24 . . . Traps Extracted . | . . . . . . . . . . Installed 2 | . . . . . . . . 2 . Triggered 9 | . . . . . . 8 . 1 . Machines | -11 -10 -10 -10 -9 -8 -7 -6 -6 -6 ---------- Run | Scr Mat Min Exi Min Mat Fac Fac Low Low Machines Disabled 1 | . . . . . . 1 . . . Max in Single Turn 1 | . . . . . . 1 . . . Garrison Access 2 | . . . . . . 2 . . . Machines Sabotaged . | . . . . . . . . . . Garrisons Compromised . | . . . . . . . . . . Overloaded Fab Kills . | . . . . . . . . . . Fab Network Shutdowns . | . . . . . . . . . . Hacking | -11 -10 -10 -10 -9 -8 -7 -6 -6 -6 --------- Run | Scr Mat Min Exi Min Mat Fac Fac Low Low Machines Accessed 28 | . 1 1 2 . 2 18 3 1 . Terminals 14 | . 1 1 . . 2 8 2 . . Fabricators 4 | . . . . . . 3 1 . . Repair Stations 1 | . . . . . . 1 . . . Recycling Units 2 | . . . . . . 2 . . . Scanalyzers 2 | . . . . . . 2 . . . Garrison Access 2 | . . . . . . 2 . . . Total Hacks 106 | . 4 4 24 . 10 51 12 1 . Successful 86 | . 4 2 24 . 5 39 11 1 . Failed 20 | . . 2 . . 5 12 1 . . Catastrophic 1 | . . . . . 1 . . . . Database Lockouts . | . . . . . . . . . . Manual 33 | . 3 . 1 . 5 19 5 . . Terminals 46 | . 4 4 . . 10 20 8 . . Fabricators 10 | . . . . . . 6 4 . . Repair Stations 5 | . . . . . . 5 . . . Recycling Units 8 | . . . . . . 8 . . . Scanalyzers 9 | . . . . . . 9 . . . Garrison Access 3 | . . . . . . 3 . . . Terminal Hacks 37 | . 1 2 24 . 3 3 3 1 . Record 24 | . . 1 23 . . . . . . Part Schematic 2 | . . . . . . 2 . . . Robot Analysis 1 | . . . . . 1 . . . . Prototype ID Bank 2 | . . . . . 1 . 1 . . Open Door 1 | . . . . . . . . 1 . Branch Access Points 3 | . 1 . . . 1 . 1 . . Unreport Threat 1 | . . . . . . 1 . . . Zone Layout 2 | . . 1 . . . . 1 . . EX-Prototype ID Bank 1 | . . . 1 . . . . . . Fabricator Hacks 9 | . . . . . . 6 3 . . Load Schematic 4 | . . . . . . 3 1 . . Build 5 | . . . . . . 3 2 . . Repair Station Hacks 5 | . . . . . . 5 . . . Scan Component 2 | . . . . . . 2 . . . Repair 2 | . . . . . . 2 . . . Refit 1 | . . . . . . 1 . . . Recycling Unit Hacks 3 | . . . . . . 3 . . . Retrieve Matter 1 | . . . . . . 1 . . . Retrieve Components 2 | . . . . . . 2 . . . Scanalyzer 6 | . . . . . . 6 . . . Insert Component 3 | . . . . . . 3 . . . Analyze 3 | . . . . . . 3 . . . Garrison Access Hacks 2 | . . . . . . 2 . . . Seal Access 2 | . . . . . . 2 . . . Unauthorized Hacks 24 | . 3 . . . 2 14 5 . . Terminals 17 | . 3 . . . 2 8 4 . . Track 1 | . 1 . . . . . . . . Assimilate 4 | . . . . . . 3 1 . . Botnet 8 | . 1 . . . 1 4 2 . . Operators 4 | . 1 . . . 1 1 1 . . Fabricators 1 | . . . . . . . 1 . . Siphon 1 | . . . . . . . 1 . . Repair Stations . | . . . . . . . . . . Recycling Units 5 | . . . . . . 5 . . . Monitor 1 | . . . . . . 1 . . . Reject 2 | . . . . . . 2 . . . Mask 2 | . . . . . . 2 . . . Scanalyzers 1 | . . . . . . 1 . . . Extract 1 | . . . . . . 1 . . . Garrison Access . | . . . . . . . . . . Data Cores Recovered . | . . . . . . . . . . Used . | . . . . . . . . . . Hacking Detections 23 | . 1 1 . . 2 17 2 . . Full Trace Events 3 | . . 1 . . . 2 . . . Feedback Events . | . . . . . . . . . . Feedback Blocked . | . . . . . . . . . . Robot Schematics Acquired . | . . . . . . . . . . Robots Built . | . . . . . . . . . . Matter . | . . . . . . . . . . Time . | . . . . . . . . . . Total Robot Build Rating . | . . . . . . . . . . Part Schematics Acquired 5 | . . . . . . 5 . . . Parts Built 7 | . . . . . . 5 2 . . Matter 825 | . . . . . . 570 255 . . Time 394 | . . . . . . 248 146 . . Total Part Build Rating 33 | . . . . . . 27 6 . . Parts Repaired 2 | . . . . . . 2 . . . Time 118 | . . . . . . 118 . . . Parts Recycled . | . . . . . . . . . . Recycled Matter . | . . . . . . . . . . Retrieved Matter . | . . . . . . . . . . Retrieved Components 9 | . . . . . . 9 . . . Parts Scanalyzed 2 | . . . . . . 2 . . . Part Schematics Acquired 2 | . . . . . . 2 . . . Parts Damaged . | . . . . . . . . . . Bothacking | -11 -10 -10 -10 -9 -8 -7 -6 -6 -6 ------------ Run | Scr Mat Min Exi Min Mat Fac Fac Low Low Used RIF Installer . | . . . . . . . . . . Robots Hacked . | . . . . . . . . . . Non-combat . | . . . . . . . . . . Combat . | . . . . . . . . . . Robot Hacks Applied . | . . . . . . . . . . Relay Couplers Released . | . . . . . . . . . . Robots Rewired . | . . . . . . . . . . Allies Hacked 1 | . . . . . . . . . 1 Hacks Repelled . | . . . . . . . . . . Allies | -11 -10 -10 -10 -9 -8 -7 -6 -6 -6 -------- Run | Scr Mat Min Exi Min Mat Fac Fac Low Low Total Allies 4 | . . . . . . 3 . . 1 Largest Group 1 | . . . . . . 1 1 1 1 Highest-Rated Group 135 | . . . . . . 26 26 26 135 Highest-Rated Ally 135 | . . . . . . 26 26 26 135 Total Orders 6 | . . . . . . 6 . . . STAY 3 | . . . . . . 3 . . . FOLLOW 3 | . . . . . . 3 . . . Ally Attacks . | . . . . . . . . . . Total Damage . | . . . . . . . . . . Kills . | . . . . . . . . . . Allies Corrupted 1 | . . . . . . . . . 1 Allies Melted . | . . . . . . . . . . Intel | -11 -10 -10 -10 -9 -8 -7 -6 -6 -6 ------- Run | Scr Mat Min Exi Min Mat Fac Fac Low Low Robot Analysis Total 1 | . . . . . 1 . . . . Derelict Logs Recovered 5 | . . 2 . 1 . . . 2 . Drone Launches . | . . . . . . . . . . Drone Recoveries . | . . . . . . . . . . Exploration | -11 -10 -10 -10 -9 -8 -7 -6 -6 -6 ------------- Run | Scr Mat Min Exi Min Mat Fac Fac Low Low Turns Passed 6734 | . 329 909 262 123 374 3503 475 619 140 Spaces Moved 4110 | 1 68 630 284 115 270 1741 326 518 157 Core 112 | . . . . . . . . . 112 Treads 147 | . . . . . . 147 . . . Legs 85 | 1 68 16 . . . . . . . Wheels 3762 | . . 614 284 115 270 1591 326 518 44 Hover . | . . . . . . . . . . Flight 4 | . . . . . . 3 . . 1 Fastest Speed 50 | 120 120 90 90 100 90 100 110 110 50 Average Speed 103 | 120 120 90 91 100 99 110 110 110 68 Slowest Speed 277 | 120 120 120 100 100 110 180 110 110 277 Overloaded Moves . | . . . . . . . . . . Propulsion Burnouts . | . . . . . . . . . . Robots Hopped . | . . . . . . . . . . Cave-ins Triggered . | . . . . . . . . . . Exploration Rate (%) 39 | 2 14 98 62 34 26 46 11 71 33 Regions Visited 9 Branch Regions 5 Pre-discovered Areas 3 | . . 1 1 1 . . . . . Known Exits Taken 5 | . 1 . . . 1 1 1 1 . Unknown Exits Taken 4 | 1 . 1 1 1 . . . . . Scrap Searched 4 | . . 1 . . . . . 3 . Spaces Dug 17 | . . . . . . 12 4 1 . Terrain Destroyed 158 | . . 26 . 21 45 35 4 1 26 Melee 17 | . . . . . . 12 4 1 . Projectile . | . . . . . . . . . . AOE 141 | . . 26 . 21 45 23 . . 26 Terrain Rammed . | . . . . . . . . . . Walls Destroyed . | . . . . . . . . . . Machines Disabled . | . . . . . . . . . . Actions | -11 -10 -10 -10 -9 -8 -7 -6 -6 -6 --------- Run | Scr Mat Min Exi Min Mat Fac Fac Low Low Total 6417 | . 315 956 288 119 330 3232 435 557 185 Wait 2070 | . 248 314 . . 8 1373 101 21 5 Move 4101 | . 67 629 283 114 269 1740 325 517 157 Hop . | . . . . . . . . . . Pick Up 29 | . . . 2 1 10 13 2 1 . Fast Attach 16 | . . 3 . . . 10 . 3 . Attach 23 | . . . . . 7 5 2 . 9 Detach 3 | . . . . . 1 1 . . 1 Swap 37 | . . 2 1 1 2 27 . 3 1 Drop 26 | . . 2 2 . 2 10 . 3 7 Fire 68 | . . 6 . 3 20 27 1 6 5 Melee 41 | . . . . . 11 25 4 1 . Ram . | . . . . . . . . . . Kick . | . . . . . . . . . . Crush . | . . . . . . . . . . Escape Stasis . | . . . . . . . . . . Rewire 1 | . . . . . . 1 . . . Trap 2 | . . . . . . . . 2 . Miscellaneous . | . . . . . . . . . . Route ------- -11/Scrapyard -10/Materials -10/Mines (discovered 3 exits: [*Mat x2] / *Exi) -10/Exiles -9/Mines -8/Materials (discovered 2 exits: *Fac x2) -7/Factory (discovered 2 exits: *Fac / *Sto) -6/Factory (discovered 4 exits: *Low x2 / Ext x2) -6/Lower Caves -6/Lower Caves History --------- Turn | Location | Event 1 | -11/Scrapyard | Discovered new exit (range 0) 1 | -11/Scrapyard | Entered Materials 29 | -10/Materials | Identified exit to Mines 305 | -10/Materials | Build established: Mutant 330 | -10/Materials | Entered Mines 334 | -10/Mines | Joined a pair of Derelicts in attacking an 0b10 outpost 379 | -10/Mines | Assembled infested the area 384 | -10/Mines | Assisted by a Guerilla fighting off Assembled 792 | -10/Mines | Discovered new exit (range 8) 804 | -10/Mines | Discovered new exit (range 11) 896 | -10/Mines | Learned location of 1 exit from Materials 1223 | -10/Mines | Learned location of Storage (-7) 1234 | -10/Mines | Deemed a non-threat by the Exiles lab entrance 1234 | -10/Mines | Discovered new exit (range 5) 1239 | -10/Mines | Entered Exiles 1262 | -10/Exiles | Met 8R-AWN 1276 | -10/Exiles | Met EX-HEX 1306 | -10/Exiles | Met EX-BIN 1317 | -10/Exiles | Aligned with FarCom system 1318 | -10/Exiles | Given EX-Vault access code 1339 | -10/Exiles | Opened EX-Vault 1348 | -10/Exiles | Found Trap Reconfigurator 1368 | -10/Exiles | Warned to stay clear of 0b10 Research branches 1393 | -10/Exiles | Met EX-DEC 1413 | -10/Exiles | Learned location of Zion (-6) 1440 | -10/Exiles | Discovered new exit (range 12) 1501 | -10/Exiles | Left Exiles lab with Trap Reconfigurator 1501 | -10/Exiles | Entered Mines 1519 | -9/Mines | Learned Materials emergency access door positions 1578 | -9/Mines | Found a damaged Exp. Sensor Array with a note attached 1580 | -9/Mines | Found Prototype Device 1581 | -9/Mines | Identified Exp. Sensor Array 1604 | -9/Mines | Discovered new exit (range 15) 1624 | -9/Mines | Entered Materials 1624 | -8/Materials | Evolved 4 slots: Propulsion x1, Utility x3 1625 | -8/Materials | Identified exit to Factory 1761 | -8/Materials | Garrison activated, responded to threat 1982 | -8/Materials | Discovered exit to Factory (range 16) 1998 | -8/Materials | Entered Factory 1998 | -7/Factory | Evolved 2 slots: Propulsion x1, Utility x1 2246 | -7/Factory | Build established: Hacker-Assassin 2600 | -7/Factory | Repaired Exp. Sensor Array 2639 | -7/Factory | Repaired Imp. Light Armor Plating 3936 | -7/Factory | Discovered new exit (range 4) 3941 | -7/Factory | Identified exit to Storage 4077 | -7/Factory | P-60 Hacker assimilated allied Administrator 4a 4291 | -7/Factory | Fabricated System Shield (x1) 4754 | -7/Factory | Garrison activated, responded to threat 4971 | -7/Factory | Discovered new exit (range 5) 4975 | -7/Factory | Identified exit to Factory 5222 | -7/Factory | Fabricated Cmb. Airjet (x2) 5346 | -7/Factory | Lost 4 parts (1p2n1w) 5457 | -7/Factory | Fabricated Hyp. Mass Driver (x2) 5501 | -7/Factory | Entered another Factory area 5501 | -6/Factory | Accompanied by 1 ally 5501 | -6/Factory | Evolved 2 slots: Utility x2 5562 | -6/Factory | Discovered new exit (range 11) 5572 | -6/Factory | Identified exit to Lower Caves 5829 | -6/Factory | Fabricated System Shield (x1) 5905 | -6/Factory | Fabricated System Shield (x1) 5951 | -6/Factory | Identified exit to Extension 5976 | -6/Factory | Entered Lower Caves 5976 | -6/Lower Caves | Accompanied by 1 ally 6079 | -6/Lower Caves | Encountered a Warlord checkpoint 6141 | -6/Lower Caves | Learned Factory terminal intel 6381 | -6/Lower Caves | Build established: Hacker-Skirmisher 6413 | -6/Lower Caves | Learned location of 1 exit from Factory 6509 | -6/Lower Caves | Discovered new exit (range 13) 6544 | -6/Lower Caves | Found Alien Artifact 6544 | -6/Lower Caves | Identified Core Expander 6544 | -6/Lower Caves | Installed Core Expander, added new Utility slot 6594 | -6/Lower Caves | Identified exit to Lower Caves 6595 | -6/Lower Caves | Entered another Lower Caves area 6595 | -6/Lower Caves | Accompanied by 1 ally 6619 | -6/Lower Caves | Attracted the attention of an 0b10 outpost 6672 | -6/Lower Caves | Core integrity fell below 50% 6678 | -6/Lower Caves | Core integrity fell below 20% 6711 | -6/Lower Caves | Lost 15 parts (1p7n5u2w) 6727 | -6/Lower Caves | Attracted the attention of an 0b10 checkpoint 6735 | -6/Lower Caves | Destroyed by Y-54 Guardian with Flak Gun Last Messages --------------- 06671_ Carbon-fiber Leg fries itself beyond repair. 06671_ Dropped Sml. Storage Unit. 06672_ Axe fries itself beyond repair. 06672_ Imp. Melee Analysis Suite fries itself beyond repair. 06672_ Penetrated by Slug. 06673_ Imp. Deuterium Engine fries itself beyond repair. 06674_ System Shield destroyed. 06675_ The unstable cave ceiling collapses. 06675_ Dropped Deuterium Engine. 06675_ System Shield destroyed. 06675_ Slug penetrates S-27 Virus. 06675_ S-27 Virus destroyed. A strange signal echoes through the caves. 06676_ Dropped Gauss Rifle. 06677_ Dropped System Backup Module. 06677_ Dropped Lrg. Storage Unit. 06678_ Penetrated by Slug. 06680_ Imp. Light Armor Plating destroyed. 06727_ Y-54 Guardian: "INTERCEPTING UNREGISTERED DERELICT." 06731_ Acquired 46 matter. Map ----- +----------------------------------------------------+ | ?????????????????????????????????????????????????? | | ?????????????????????????????????????????????????? | | ?????????????????????????????????????????????????? | | ?????????????????????????????????????????????????? | | ?????????????????????????????????????????????????? | | ?????????????????????????????????????????????????? | | ?????????????????????????????????????????????????# | | ????????????????????????????????????????????????## | | ???????????????????????????????????????????????## | | ???????????????????????????????????????????????# | | ????????????????????????????????????????????????# | | ????????????????????????????????????????????????# | | ????????????????????????????????????????????????# | | ?????????????????????????????????????????????????# | | ????????? ??????????????????????????????????????? | | ????????? ?##???????????????####?????????????# | | ?????????? # ????????????# ##?????????#### | | ????????????? ??????????## ##???????## | | ????????????????# ??###???# ##?????## | | ????????????????# ## #### #?????# | | ????????????????# #????## | | ????????????????# ### ####### | | ????????????????# ### *### | | ????????????????# ???## ## | | ????????????? ????###s Y ##### | | ??????????" ####???????#@ g #???##### ## | | ????????????????????????# #???????##### | | ????????????????????????## ##???????????## | | ?????????????????????????### #?????????????? | | ???????????????????????????# #?????????????? | | ???????????????????????????# #?????????????? | | ???????????????????????????#########?????????????? | | ?????????????????????????????????????????????????? | | ?????????????????????????????????????????????????? | | ?????????????????????????????????????????????????? | | ?????????????????????????????????????????????????? | | ?????????????????????????????????????????????????? | | ?????????????????????????????????????????????????? | | ?????????????????????????????????????????????????? | | ?????????????????????????????????????????????????? | | ?????????????????????????????????????????????????? | | ?????????????????????????????????????????????????? | | ?????????????????????????????????????????????????? | | ?????????????????????????????????????????????????? | | | | | | | | | | | | | +----------------------------------------------------+ Best States ------------- Heat Dissipation 37 Energy Generation 18 Energy Capacity 290 Matter Stores 300 Matter Capacity 300 Sight Range 22 Robot Scan Range 30 Terrain Scan Density 10 Armor Coverage 300 Resistance: KI 20 Resistance: TH 20 Resistance: EX 20 Resistance: EM 20 Resistance: I 20 Resistance: S 20 Resistance: P 20 Utility Shielding 33 Evasion (%) 50 Recoil Reduction 1 Offensive Hacking 30 Defensive Hacking 30 Item Schematics ----------------- VTOL Module | -7/Factory | Scanalyzed Imp. Signal Interpreter | -7/Factory | Extracted System Shield | -7/Factory | Hacked Cmb. Airjet | -7/Factory | Hacked Enh. Optical Array | -7/Factory | Scanalyzed Robot Schematics ------------------ None Fabricated ------------ System Shield | x1 | -7/Factory Cmb. Airjet | x2 | -7/Factory Hyp. Mass Driver | x2 | -7/Factory | Preloaded System Shield | x1 | -6/Factory System Shield | x1 | -6/Factory Alien Tech Used ----------------- Core Expander Achievements -------------- None Challenges ------------ None Game ------ Seed ArcOpticalSpear Manual? 0 Play Time 00:57:48 Cumulative 72.3 hours Start 2021.12.26 @ 01:40:32 End 2021.12.26 @ 13:38:41 Sessions 2 Manual Loads 0 Difficulty Adventurer Special Mode None Game No. 47 Rogue 11 Adventurer 31 Explorer 5 Win Type - Total 0 Types 0/0/0/0/0/0/0/0/0 Lore% 39 Gallery% 54 Achievement% 44 Wizard Run 0 Options --------- ASCII 0 Keyboard 0 Movement Mouse Keybinds 0 Fullscreen 1 Font 18/SmallcapsGlow Map View 76x50 Tactical HUD 1 Map Filters NONE Filters NONE Steam 1 RUN: 4584916a-bea7-448b-b21a-3da8cbef5ed3